fUSD/lending_fUSD_20240223
["ID","MTS","AMOUNT","RATE_DAILY","PERIOD"]
[314951654,1708693869824,-1327.32,0.00028904,2]
[314951655,1708693869833,-1349.29,0.00028904,2]
[314951656,1708693869842,-500.0,0.00028904,2]
[314951657,1708693869852,-500.0,0.00028904,2]
[314951658,1708693869861,-500.0,0.00028904,2]
[314951659,1708693869871,-286.78294301,0.00028904,2]
[314951660,1708693869880,-8268.12,0.00028904,2]
[314951661,1708693869889,-500.0,0.00028904,2]
[314951662,1708693869909,-977.56,0.00028904,2]
[314951663,1708693869918,-500.0,0.00028904,2]
[314951664,1708693869927,-500.0,0.00028904,2]
[314951665,1708693869937,-596.66,0.00028904,2]
[314951666,1708693869946,-911.76,0.00028904,2]
[314951667,1708693869955,-777.61,0.00028904,2]
[314951668,1708693869965,-500.0,0.00028904,2]
[314951669,1708693869974,-2510.58,0.00028904,2]
[314951670,1708693869984,-500.0,0.00028904,2]
[314951671,1708693869993,-1644.53,0.00028904,2]
[314951672,1708693870003,-618.1,0.00028904,2]
[314951673,1708693870012,-644.27774751,0.00028904,2]
[314951674,1708693870022,-500.0,0.00028904,2]
[314951675,1708693870031,-500.0,0.00028904,2]
[314951676,1708693870040,-500.0,0.00028904,2]
[314951677,1708693870050,-500.0,0.00028904,2]
[314951678,1708693870059,-1934.12,0.00028904,2]
[314951679,1708693870068,-893.63,0.00028904,2]
[314951680,1708693870078,-590.08,0.00028904,2]
[314951681,1708693870087,-500.0,0.00028904,2]
[314951682,1708693870096,-705.84,0.00028904,2]
[314951683,1708693870107,-500.0,0.00028904,2]
[314951684,1708693870118,-500.0,0.00028904,2]
[314951685,1708693870128,-704.79,0.00028904,2]
[314951686,1708693870138,-1139.33,0.00028904,2]
[314951687,1708693870148,-660.29,0.00028904,2]
[314951688,1708693870158,-2800.15,0.00028904,2]
[314951689,1708693870168,-1317.25,0.00028904,2]
[314951690,1708693870178,-500.0,0.00028904,2]
[314951691,1708693870187,-650.89,0.00028904,2]
[314951692,1708693870198,-500.0,0.00028904,2]
[314951693,1708693870207,-1872.79,0.00028904,2]
[314951694,1708693870216,-500.0,0.00028904,2]
[314951695,1708693870226,-500.0,0.00028904,2]
[314951696,1708693870236,-1281.33,0.00028904,2]
[314951697,1708693870246,-848.74,0.00028904,2]
[314951698,1708693870255,-500.0,0.00028904,2]
[314951699,1708693870264,-500.0,0.00028904,2]
[314951700,1708693870274,-705.33,0.00028904,2]
[314951701,1708693870284,-693.34,0.00028904,2]
[314951702,1708693870293,-500.0,0.00028904,2]
[314951703,1708693870302,-500.0,0.00028904,2]
[314951704,1708693870311,-2079.75,0.00028904,2]
[314951705,1708693870321,-1082.32,0.00028904,2]
[314951706,1708693870330,-500.0,0.00028904,2]
[314951707,1708693870339,-198.71059542,0.00028904,2]
[314951708,1708693870349,-589.95,0.00028904,2]
[314951709,1708693870358,-526.41,0.00028904,2]
[314951710,1708693870367,-700.3,0.00028904,2]
[314951711,1708693870377,-3025.29,0.00028904,2]
[314951712,1708693870387,-1950.16,0.00028904,2]
[314951713,1708693870396,-500.0,0.00028904,2]
[314951714,1708693870406,-500.0,0.00028904,2]
[314951715,1708693870415,-532.78,0.00028904,2]
[314951716,1708693870424,-1323.25,0.00028904,2]
[314951717,1708693870434,-6442.85,0.00028904,2]
[314951718,1708693870443,-500.0,0.00028904,2]
[314951719,1708693870454,-500.0,0.00028904,2]
[314951720,1708693870463,-531.5,0.00028904,2]
[314951721,1708693870473,-675.36,0.00028904,2]
[314951722,1708693870485,-500.0,0.00028904,2]
[314951723,1708693870494,-500.0,0.00028904,2]
[314951724,1708693870504,-500.0,0.00028904,2]
[314951725,1708693870513,-2032.94,0.00028904,2]
[314951726,1708693870523,-537.98,0.00028904,2]
[314951727,1708693870534,-581.06,0.00028904,2]
[314951728,1708693870543,-525.93,0.00028904,2]
[314951729,1708693870553,-500.0,0.00028904,2]
[314951730,1708693870563,-589.61,0.00028904,2]
[314951731,1708693870572,-200.0,0.00028993,2]
[314951732,1708693870581,-21530.50325425,0.00029,2]
[314951733,1708693870591,-328.97728263,0.00029,2]
[314951734,1708693870601,-445.0,0.00029,2]
[314951735,1708693870610,-151.04,0.00029,2]
[314951736,1708693870620,-8798.41,0.00029,2]
[314951737,1708693870629,-395.0,0.00029,2]
[314951738,1708693870638,-16110.53,0.00029009,2]
[314951739,1708693870648,-500.0,0.00029041,2]
[314951740,1708693870657,-500.0,0.00029041,2]
[314951741,1708693870666,-500.0,0.00029041,2]
[314951742,1708693870675,-500.0,0.00029041,2]
[314951743,1708693870684,-364.10850547,0.00029041,2]
[314951744,1708693870693,-500.0,0.00029041,2]
[314951745,1708693870702,-500.0,0.00029041,2]
[314951746,1708693870711,-500.0,0.00029041,2]
[314951747,1708693870721,-500.0,0.00029041,2]
[314951748,1708693870730,-500.0,0.00029041,2]
[314951749,1708693870740,-500.0,0.00029041,2]
[314951750,1708693870749,-500.0,0.00029041,2]
[314951751,1708693870758,-500.0,0.00029041,2]
[314951752,1708693870766,-227.69734006,0.00029041,2]
[314951753,1708693870776,-500.0,0.00029041,2]
[314951754,1708693870785,-545.07,0.00029041,2]
[314951755,1708693870793,-500.0,0.00029041,2]
[314951756,1708693870802,-500.0,0.00029041,2]
[314951757,1708693870811,-731.69,0.00029041,2]
[314951758,1708693870820,-2636.68,0.00029041,2]
[314951759,1708693870829,-500.0,0.00029041,2]
[314951760,1708693870838,-1174.28,0.00029041,2]
[314951761,1708693870848,-500.0,0.00029041,2]
[314951762,1708693870857,-500.0,0.00029041,2]
[314951763,1708693870866,-4821.81,0.00029041,2]
[314951764,1708693870875,-510.54,0.00029041,2]
[314951765,1708693870884,-500.0,0.00029041,2]
[314951766,1708693870894,-349.19557604,0.00029041,2]
[314951767,1708693870903,-1508.81,0.00029041,2]
[314951768,1708693870913,-1327.32,0.00029041,2]
[314951769,1708693870922,-1349.29,0.00029041,2]
[314951770,1708693870931,-500.0,0.00029041,2]
[314951771,1708693870940,-298.06200349,0.00029041,2]
[314951772,1708693870949,-500.0,0.00029041,2]
[314951773,1708693870958,-8268.12,0.00029041,2]
[314951774,1708693870968,-381.3735095,0.00029041,2]
[314951775,1708693870977,-977.56,0.00029041,2]
[314951776,1708693870987,-500.0,0.00029041,2]
[314951777,1708693870996,-500.0,0.00029041,2]
[314951778,1708693871005,-596.66,0.00029041,2]
[314951779,1708693871014,-911.76,0.00029041,2]
[314951780,1708693871024,-777.61,0.00029041,2]
[314951781,1708693871033,-500.0,0.00029041,2]
[314951782,1708693871042,-2510.58,0.00029041,2]
[314951783,1708693871051,-500.0,0.00029041,2]
[314951784,1708693871061,-1644.53,0.00029041,2]
[314951785,1708693871070,-618.1,0.00029041,2]
[314951786,1708693871079,-500.0,0.00029041,2]
[314951787,1708693871087,-500.0,0.00029041,2]
[314951788,1708693871097,-500.0,0.00029041,2]
[314951789,1708693871107,-500.0,0.00029041,2]
[314951790,1708693871119,-1934.12,0.00029041,2]
[314951791,1708693871128,-893.63,0.00029041,2]
[314951792,1708693871138,-590.08,0.00029041,2]
[314951793,1708693871152,-500.0,0.00029041,2]
[314951794,1708693871162,-705.84,0.00029041,2]
[314951795,1708693871173,-500.0,0.00029041,2]
[314951796,1708693871182,-500.0,0.00029041,2]
[314951797,1708693871194,-704.79,0.00029041,2]
[314951798,1708693871203,-1139.33,0.00029041,2]
[314951799,1708693871213,-660.29,0.00029041,2]
[314951800,1708693871223,-2800.15,0.00029041,2]
[314951801,1708693871232,-1317.25,0.00029041,2]
[314951802,1708693871242,-500.0,0.00029041,2]
[314951803,1708693871252,-650.89,0.00029041,2]
[314951804,1708693871261,-500.0,0.00029041,2]
[314951805,1708693871271,-1872.79,0.00029041,2]
[314951806,1708693871281,-500.0,0.00029041,2]
[314951807,1708693871290,-500.0,0.00029041,2]
[314951808,1708693871300,-1281.33,0.00029041,2]
[314951809,1708693871309,-848.74,0.00029041,2]
[314951810,1708693871320,-500.0,0.00029041,2]
[314951811,1708693871329,-500.0,0.00029041,2]
[314951812,1708693871339,-705.33,0.00029041,2]
[314951813,1708693871348,-693.34,0.00029041,2]
[314951814,1708693871357,-500.0,0.00029041,2]
[314951815,1708693871367,-500.0,0.00029041,2]
[314951816,1708693871376,-2079.75,0.00029041,2]
[314951817,1708693871386,-1082.32,0.00029041,2]
[314951818,1708693871395,-500.0,0.00029041,2]
[314951819,1708693871405,-589.95,0.00029041,2]
[314951820,1708693871414,-526.41,0.00029041,2]
[314951821,1708693871424,-700.3,0.00029041,2]
[314951822,1708693871434,-3025.29,0.00029041,2]
[314951823,1708693871443,-1950.16,0.00029041,2]
[314951824,1708693871453,-500.0,0.00029041,2]
[314951825,1708693871463,-500.0,0.00029041,2]
[314951826,1708693871473,-532.78,0.00029041,2]
[314951827,1708693871483,-1323.25,0.00029041,2]
[314951828,1708693871493,-6442.85,0.00029041,2]
[314951829,1708693871503,-500.0,0.00029041,2]
[314951830,1708693871513,-500.0,0.00029041,2]
[314951831,1708693871522,-531.5,0.00029041,2]
[314951832,1708693871532,-675.36,0.00029041,2]
[314951833,1708693871541,-500.0,0.00029041,2]
[314951834,1708693871551,-609.40376217,0.00029041,2]
[314951835,1708693871560,-500.0,0.00029041,2]
[314951836,1708693871570,-2032.94,0.00029041,2]
[314951837,1708693871579,-537.98,0.00029041,2]
[314951838,1708693871589,-581.06,0.00029041,2]
[314951839,1708693871598,-525.93,0.00029041,2]
[314951840,1708693871607,-500.0,0.00029041,2]
[314951841,1708693871616,-589.61,0.00029041,2]
[314951842,1708693871626,-333.75429769,0.00029099,15]
[314951843,1708693871635,-200.0,0.00029116,2]
[314951844,1708693871644,-800.0,0.00029116,2]
[314951845,1708693871653,-200.0,0.00029116,2]
[314951846,1708693871662,-500.0,0.00029116,2]
[314951847,1708693871671,-150.0,0.00029123,7]
[314951848,1708693871680,-500.0,0.00029178,2]
[314951849,1708693871689,-500.0,0.00029178,2]
[314951850,1708693871698,-442.75,0.00029178,2]
[314951851,1708693871707,-500.0,0.00029178,2]
[314951852,1708693871717,-500.0,0.00029178,2]
[314951853,1708693871727,-646.46,0.00029178,2]
[314951854,1708693871738,-500.0,0.00029178,2]
[314951855,1708693871748,-500.0,0.00029178,2]
[314951856,1708693871758,-629.24,0.00029178,2]
[314951857,1708693871768,-500.0,0.00029178,2]
[314951858,1708693871779,-500.0,0.00029178,2]
[314951859,1708693871788,-500.0,0.00029178,2]
[314951860,1708693871798,-638.98,0.00029178,2]
[314951861,1708693871807,-545.07,0.00029178,2]
[314951862,1708693871816,-500.0,0.00029178,2]
[314951863,1708693871825,-500.0,0.00029178,2]
[314951864,1708693871835,-731.69,0.00029178,2]
[314951865,1708693871844,-2636.68,0.00029178,2]
[314951866,1708693871853,-500.0,0.00029178,2]
[314951867,1708693871863,-1174.28,0.00029178,2]
[314951868,1708693871873,-500.0,0.00029178,2]
[314951869,1708693871882,-587.94,0.00029178,2]
[314951870,1708693871892,-4821.81,0.00029178,2]
[314951871,1708693871902,-510.54,0.00029178,2]
[314951872,1708693871912,-500.0,0.00029178,2]
[314951873,1708693871921,-1508.81,0.00029178,2]
[314951874,1708693871930,-1327.32,0.00029178,2]
[314951875,1708693871940,-1349.29,0.00029178,2]
[314951876,1708693871950,-500.0,0.00029178,2]
[314951877,1708693871960,-500.0,0.00029178,2]
[314951878,1708693871969,-8268.12,0.00029178,2]
[314951879,1708693871979,-977.56,0.00029178,2]
[314951880,1708693871992,-500.0,0.00029178,2]
[314951881,1708693872002,-500.0,0.00029178,2]
[314951882,1708693872011,-596.66,0.00029178,2]
[314951883,1708693872021,-911.76,0.00029178,2]
[314951884,1708693872031,-777.61,0.00029178,2]
[314951885,1708693872041,-500.0,0.00029178,2]
[314951886,1708693872050,-2510.58,0.00029178,2]
[314951887,1708693872061,-500.0,0.00029178,2]
[314951888,1708693872071,-1644.53,0.00029178,2]
[314951889,1708693872081,-618.1,0.00029178,2]
[314951890,1708693872090,-573.25321279,0.00029178,2]
[314951891,1708693872100,-500.0,0.00029178,2]
[314951892,1708693872114,-500.0,0.00029178,2]
[314951893,1708693872124,-500.0,0.00029178,2]
[314951894,1708693872134,-1934.12,0.00029178,2]
[314951895,1708693872144,-893.63,0.00029178,2]
[314951896,1708693872155,-590.08,0.00029178,2]
[314951897,1708693872165,-500.0,0.00029178,2]
[314951898,1708693872178,-705.84,0.00029178,2]
[314951899,1708693872189,-500.0,0.00029178,2]
[314951900,1708693872203,-500.0,0.00029178,2]
[314951901,1708693872213,-704.79,0.00029178,2]
[314951902,1708693872225,-1139.33,0.00029178,2]
[314951903,1708693872239,-660.29,0.00029178,2]
[314951904,1708693872250,-2800.15,0.00029178,2]
[314951905,1708693872260,-1317.25,0.00029178,2]
[314951906,1708693872272,-500.0,0.00029178,2]
[314951907,1708693872282,-650.89,0.00029178,2]
[314951908,1708693872293,-500.0,0.00029178,2]
[314951909,1708693872303,-1872.79,0.00029178,2]
[314951910,1708693872314,-623.9915467,0.00029178,2]
[314951911,1708693872324,-500.0,0.00029178,2]
[314951912,1708693872335,-1281.33,0.00029178,2]
[314951913,1708693872345,-848.74,0.00029178,2]
[314951914,1708693872356,-500.0,0.00029178,2]
[314951915,1708693872366,-500.0,0.00029178,2]
[314951916,1708693872377,-705.33,0.00029178,2]
[314951917,1708693872388,-693.34,0.00029178,2]
[314951918,1708693872398,-500.0,0.00029178,2]
[314951919,1708693872409,-500.0,0.00029178,2]
[314951920,1708693872420,-2079.75,0.00029178,2]
[314951921,1708693872435,-1082.32,0.00029178,2]
[314951922,1708693872446,-589.95,0.00029178,2]
[314951923,1708693872456,-526.41,0.00029178,2]
[314951924,1708693872467,-700.3,0.00029178,2]
[314951925,1708693872479,-3025.29,0.00029178,2]
[314951926,1708693872495,-1950.16,0.00029178,2]
[314951927,1708693872505,-500.0,0.00029178,2]
[314951928,1708693872516,-500.0,0.00029178,2]
[314951929,1708693872532,-532.78,0.00029178,2]
[314951930,1708693872542,-1323.25,0.00029178,2]
[314951931,1708693872552,-6442.85,0.00029178,2]
[314951932,1708693872562,-500.0,0.00029178,2]
[314951933,1708693872573,-500.0,0.00029178,2]
[314951934,1708693872584,-531.5,0.00029178,2]
[314951935,1708693872595,-675.36,0.00029178,2]
[314951936,1708693872606,-424.37,0.00029178,2]
[314951937,1708693872616,-2032.94,0.00029178,2]
[314951938,1708693872626,-500.0,0.00029178,2]
[314951939,1708693872637,-537.98,0.00029178,2]
[314951940,1708693872647,-581.06,0.00029178,2]
[314951941,1708693872658,-525.93,0.00029178,2]
[314951942,1708693872668,-500.0,0.00029178,2]
[314951943,1708693872682,-589.61,0.00029178,2]
[314951944,1708693872692,-11664.25420911,0.00029188,2]
[314951945,1708693872702,-704.0,0.000292,2]
[314951946,1708693872712,-510.82072971,0.00029271,4]
[314951947,1708693872722,-152.91397092,0.0002929,3]
[314951948,1708693872732,-500.0,0.00029315,2]
[314951949,1708693872744,-500.0,0.00029315,2]
[314951950,1708693872754,-284.05689339,0.00029315,2]
[314951951,1708693872764,-500.0,0.00029315,2]
[314951952,1708693872774,-500.0,0.00029315,2]
[314951953,1708693872784,-500.0,0.00029315,2]
[314951954,1708693872793,-500.0,0.00029315,2]
[314951955,1708693872804,-500.0,0.00029315,2]
[314951956,1708693872814,-500.0,0.00029315,2]
[314951957,1708693872824,-545.07,0.00029315,2]
[314951958,1708693872835,-500.0,0.00029315,2]
[314951959,1708693872845,-500.0,0.00029315,2]
[314951960,1708693872856,-731.69,0.00029315,2]
[314951961,1708693872866,-2636.68,0.00029315,2]
[314951962,1708693872876,-500.0,0.00029315,2]
[314951963,1708693872887,-1174.28,0.00029315,2]
[314951964,1708693872897,-500.0,0.00029315,2]
[314951965,1708693872907,-4821.81,0.00029315,2]
[314951966,1708693872918,-510.54,0.00029315,2]
[314951967,1708693872928,-500.0,0.00029315,2]
[314951968,1708693872938,-1508.81,0.00029315,2]
[314951969,1708693872949,-1327.32,0.00029315,2]
[314951970,1708693872959,-1349.29,0.00029315,2]
[314951971,1708693872969,-500.0,0.00029315,2]
[314951972,1708693872980,-245.7666503,0.00029315,2]
[314951973,1708693872991,-8268.12,0.00029315,2]
[314951974,1708693873001,-977.56,0.00029315,2]
[314951975,1708693873011,-500.0,0.00029315,2]
[314951976,1708693873022,-500.0,0.00029315,2]
[314951977,1708693873033,-596.66,0.00029315,2]
[314951978,1708693873044,-911.76,0.00029315,2]
[314951979,1708693873054,-777.61,0.00029315,2]
[314951980,1708693873065,-500.0,0.00029315,2]
[314951981,1708693873075,-2510.58,0.00029315,2]
[314951982,1708693873086,-626.32331183,0.00029315,2]
[314951983,1708693873097,-1644.53,0.00029315,2]
[314951984,1708693873110,-618.1,0.00029315,2]
[314951985,1708693873122,-500.0,0.00029315,2]
[314951986,1708693873132,-500.0,0.00029315,2]
[314951987,1708693873143,-500.0,0.00029315,2]
[314951988,1708693873153,-1934.12,0.00029315,2]
[314951989,1708693873164,-893.63,0.00029315,2]
[314951990,1708693873175,-590.08,0.00029315,2]
[314951991,1708693873186,-500.0,0.00029315,2]
[314951992,1708693873197,-705.84,0.00029315,2]
[314951993,1708693873210,-500.0,0.00029315,2]
[314951994,1708693873223,-500.0,0.00029315,2]
[314951995,1708693873237,-704.79,0.00029315,2]
[314951996,1708693873249,-1139.33,0.00029315,2]
[314951997,1708693873262,-660.29,0.00029315,2]
[314951998,1708693873274,-2800.15,0.00029315,2]
[314951999,1708693873285,-1317.25,0.00029315,2]
[314952000,1708693873298,-500.0,0.00029315,2]
[314952001,1708693873308,-650.89,0.00029315,2]
[314952002,1708693873319,-500.0,0.00029315,2]
[314952003,1708693873330,-1872.79,0.00029315,2]
[314952004,1708693873341,-500.0,0.00029315,2]
[314952005,1708693873353,-1281.33,0.00029315,2]
[314952006,1708693873364,-848.74,0.00029315,2]
[314952007,1708693873375,-500.0,0.00029315,2]
[314952008,1708693873386,-500.0,0.00029315,2]
[314952009,1708693873397,-705.33,0.00029315,2]
[314952010,1708693873408,-693.34,0.00029315,2]
[314952011,1708693873420,-500.0,0.00029315,2]
[314952012,1708693873431,-500.0,0.00029315,2]
[314952013,1708693873442,-2079.75,0.00029315,2]
[314952014,1708693873452,-1082.32,0.00029315,2]
[314952015,1708693873464,-589.95,0.00029315,2]
[314952016,1708693873475,-526.41,0.00029315,2]
[314952017,1708693873491,-700.3,0.00029315,2]
[314952018,1708693873501,-3025.29,0.00029315,2]
[314952019,1708693873512,-1950.16,0.00029315,2]
[314952020,1708693873523,-500.0,0.00029315,2]
[314952021,1708693873533,-604.28129123,0.00029315,2]
[314952022,1708693873544,-532.78,0.00029315,2]
[314952023,1708693873554,-1323.25,0.00029315,2]
[314952024,1708693873564,-6442.85,0.00029315,2]
[314952025,1708693873574,-500.0,0.00029315,2]
[314952026,1708693873585,-500.0,0.00029315,2]
[314952027,1708693873595,-531.5,0.00029315,2]
[314952028,1708693873606,-675.36,0.00029315,2]
[314952029,1708693873616,-2032.94,0.00029315,2]
[314952030,1708693873626,-500.0,0.00029315,2]
[314952031,1708693873637,-537.98,0.00029315,2]
[314952032,1708693873648,-581.06,0.00029315,2]
[314952033,1708693873659,-525.93,0.00029315,2]
[314952034,1708693873670,-500.0,0.00029315,2]
[314952035,1708693873681,-589.61,0.00029315,2]
[314952036,1708693873696,-150.0,0.00029387,2]
[314952037,1708693873707,-150.0,0.00029391,2]
[314952038,1708693873718,-150.0,0.00029397,2]
[314952039,1708693873729,-150.0,0.00029398,2]
[314952040,1708693873741,-150.0,0.00029404,2]
[314952041,1708693873752,-150.0,0.00029406,2]
[314952042,1708693873763,-150.0,0.00029408,2]
[314952043,1708693873774,-150.0,0.00029415,2]
[314952044,1708693873785,-150.0,0.00029417,2]
[314952045,1708693873795,-150.0,0.00029429,2]
[314952046,1708693873806,-150.0,0.0002943,2]
[314952047,1708693873817,-150.0,0.0002943,2]
[314952048,1708693873827,-150.0,0.00029435,2]
[314952049,1708693873838,-150.0,0.00029445,2]
[314952050,1708693873848,-150.0,0.00029446,2]
[314952051,1708693873859,-313.05140552,0.00029451,15]
[314952052,1708693873870,-500.0,0.00029452,2]
[314952053,1708693873880,-500.0,0.00029452,2]
[314952054,1708693873890,-500.0,0.00029452,2]
[314952055,1708693873901,-500.0,0.00029452,2]
[314952056,1708693873912,-259.24,0.00029452,2]
[314952057,1708693873923,-500.0,0.00029452,2]
[314952058,1708693873933,-577.72,0.00029452,2]
[314952059,1708693873944,-544.3,0.00029452,2]
[314952060,1708693873956,-151.0,0.00029452,2]
[314952061,1708693873966,-275.748964,0.00029452,7]
[314952062,1708693873978,-275.748964,0.00029452,7]
[314952063,1708693873989,-545.07,0.00029452,2]
[314952064,1708693874000,-500.0,0.00029452,2]
[314952065,1708693874010,-500.0,0.00029452,2]
[314952066,1708693874021,-731.69,0.00029452,2]
[314952067,1708693874031,-2636.68,0.00029452,2]
[314952068,1708693874042,-500.0,0.00029452,2]
[314952069,1708693874053,-1174.28,0.00029452,2]
[314952070,1708693874064,-500.0,0.00029452,2]
[314952071,1708693874074,-4821.81,0.00029452,2]
[314952072,1708693874085,-510.54,0.00029452,2]
[314952073,1708693874095,-500.0,0.00029452,2]
[314952074,1708693874106,-151.0,0.00029452,7]
[314952075,1708693874118,-1508.81,0.00029452,2]
[314952076,1708693874132,-151.0,0.00029452,7]
[314952077,1708693874143,-1327.32,0.00029452,2]
[314952078,1708693874154,-1349.29,0.00029452,2]
[314952079,1708693874165,-500.0,0.00029452,2]
[314952080,1708693874176,-8268.12,0.00029452,2]
[314952081,1708693874186,-977.56,0.00029452,2]
[314952082,1708693874198,-338.10840316,0.00029452,2]
[314952083,1708693874210,-500.0,0.00029452,2]
[314952084,1708693874222,-596.66,0.00029452,2]
[314952085,1708693874471,-911.76,0.00029452,2]
[314952086,1708693874483,-777.61,0.00029452,2]
[314952087,1708693874495,-500.0,0.00029452,2]
[314952088,1708693874505,-2510.58,0.00029452,2]
[314952089,1708693874515,-1644.53,0.00029452,2]
[314952090,1708693874526,-618.1,0.00029452,2]
[314952091,1708693874536,-151.0,0.00029452,7]
[314952092,1708693874546,-545.35803796,0.00029452,2]
[314952093,1708693874557,-500.0,0.00029452,2]
[314952094,1708693874566,-198.359645,0.00029452,7]
[314952095,1708693874577,-500.0,0.00029452,2]
[314952096,1708693874587,-1934.12,0.00029452,2]
[314952097,1708693874597,-893.63,0.00029452,2]
[314952098,1708693874608,-590.08,0.00029452,2]
[314952099,1708693874618,-500.0,0.00029452,2]
[314952100,1708693874628,-705.84,0.00029452,2]
[314952101,1708693874639,-500.0,0.00029452,2]
[314952102,1708693874649,-500.0,0.00029452,2]
[314952103,1708693874660,-704.79,0.00029452,2]
[314952104,1708693874671,-1139.33,0.00029452,2]
[314952105,1708693874680,-660.29,0.00029452,2]
[314952106,1708693874690,-2800.15,0.00029452,2]
[314952107,1708693874701,-1317.25,0.00029452,2]
[314952108,1708693874711,-500.0,0.00029452,2]
[314952109,1708693874720,-650.89,0.00029452,2]
[314952110,1708693874730,-500.0,0.00029452,2]
[314952111,1708693874741,-1872.79,0.00029452,2]
[314952112,1708693874751,-500.0,0.00029452,2]
[314952113,1708693874762,-1281.33,0.00029452,2]
[314952114,1708693874772,-848.74,0.00029452,2]
[314952115,1708693874782,-500.0,0.00029452,2]
[314952116,1708693874792,-500.0,0.00029452,2]
[314952117,1708693874802,-151.0,0.00029452,7]
[314952118,1708693874813,-705.33,0.00029452,2]
[314952119,1708693874823,-693.34,0.00029452,2]
[314952120,1708693874834,-500.0,0.00029452,2]
[314952121,1708693874845,-500.0,0.00029452,2]
[314952122,1708693874855,-2079.75,0.00029452,2]
[314952123,1708693874865,-1082.32,0.00029452,2]
[314952124,1708693874876,-589.95,0.00029452,2]
[314952125,1708693874886,-526.41,0.00029452,2]
[314952126,1708693874896,-700.3,0.00029452,2]
[314952127,1708693874906,-3025.29,0.00029452,2]
[314952128,1708693874916,-1950.16,0.00029452,2]
[314952129,1708693874926,-500.0,0.00029452,2]
[314952130,1708693874936,-532.78,0.00029452,2]
[314952131,1708693874945,-1323.25,0.00029452,2]
[314952132,1708693874955,-6442.85,0.00029452,2]
[314952133,1708693874964,-151.0,0.00029452,7]
[314952134,1708693874975,-607.20800346,0.00029452,2]
[314952135,1708693874986,-531.5,0.00029452,2]
[314952136,1708693874996,-675.36,0.00029452,2]
[314952137,1708693875005,-500.0,0.00029452,2]
[314952138,1708693875015,-500.0,0.00029452,2]
[314952139,1708693875024,-2032.94,0.00029452,2]
[314952140,1708693875034,-537.98,0.00029452,2]
[314952141,1708693875044,-581.06,0.00029452,2]
[314952142,1708693875054,-525.93,0.00029452,2]
[314952143,1708693875064,-500.0,0.00029452,2]
[314952144,1708693875074,-589.61,0.00029452,2]
[314952145,1708693875083,-150.0,0.00029454,2]
[314952146,1708693875092,-150.0,0.00029459,2]
[314952147,1708693875102,-150.0,0.00029466,2]
[314952148,1708693875112,-150.0,0.00029469,2]
[314952149,1708693875123,-540.88,0.0002947,2]
[314952150,1708693875134,-150.0,0.00029472,2]
[314952151,1708693875143,-150.0,0.00029476,2]
[314952152,1708693875153,-150.0,0.00029484,2]
[314952153,1708693875163,-150.0,0.00029486,2]